bitfinex-derivatives/quotes_BTCF0:USTF0_20240903
["timestamp","ask_amount","ask_price","bid_price","bid_amount"]
[1725367415167,0.098328,59295.0,59294.0,0.001]
[1725367415168,0.112328,59295.0,59294.0,0.001]
[1725367416158,0.1500989,59295.0,59294.0,0.001]
[1725367416470,0.1620989,59295.0,59292.0,0.002]
[1725367416663,0.3616,59293.0,59292.0,0.002]
[1725367416870,0.47386479,59293.0,59292.0,0.002]
[1725367417768,0.42209389,59293.0,59292.0,0.0024]
[1725367418069,0.78819465,59293.0,59292.0,0.0024]
[1725367418267,0.78819465,59293.0,59292.0,0.0014]
[1725367418664,0.55819465,59293.0,59292.0,0.0014]
[1725367419058,0.57219465,59293.0,59292.0,0.0014]
[1725367419271,0.57219465,59293.0,59292.0,0.0004]
[1725367419861,0.88652565,59293.0,59292.0,0.0004]
[1725367420265,1.03080836,59293.0,59292.0,0.0014]
[1725367420468,1.3604386,59293.0,59292.0,0.0014]
[1725367421268,2.5763986,59293.0,59292.0,0.0014]
[1725367421469,2.64562294,59293.0,59292.0,0.0014]
[1725367421663,2.53562294,59293.0,59292.0,0.0014]
[1725367422078,2.41562294,59293.0,59292.0,0.0014]
[1725367422975,2.47562294,59293.0,59292.0,0.0014]
[1725367423169,2.34590471,59293.0,59292.0,0.0014]
[1725367423776,0.16867,59290.0,59289.0,0.00025306]
[1725367423978,0.084345,59283.0,59282.0,0.0039]
[1725367424174,0.5912,59283.0,59276.0,0.23]
[1725367424372,0.084753,59277.0,59276.0,0.23]
[1725367424568,0.084353,59277.0,59276.0,0.23]
[1725367425578,0.3608,59278.0,59276.0,0.23]
[1725367425777,0.3608,59278.0,59276.0,0.232]
[1725367426581,0.3608,59278.0,59276.0,0.237]
[1725367427375,0.447152,59278.0,59276.0,0.232]
[1725367427572,0.3628,59278.0,59277.0,0.084353]
[1725367428682,0.447152,59278.0,59277.0,0.084353]
[1725367429181,0.452152,59278.0,59277.0,0.084353]
[1725367429574,0.453152,59278.0,59277.0,0.084353]
[1725367430071,0.454152,59278.0,59277.0,0.084353]
[1725367435170,0.084353,59277.0,59276.0,0.23]
[1725367435378,0.084753,59277.0,59276.0,0.23]
[1725367436384,0.086753,59277.0,59276.0,0.23]
[1725367436790,0.091753,59277.0,59276.0,0.23]
[1725367440288,0.084356,59275.0,59274.0,0.084357]
[1725367440493,0.084756,59275.0,59274.0,0.084357]
[1725367440882,0.084756,59275.0,59272.0,0.01261087]
[1725367440883,0.084359,59273.0,59272.0,0.01261087]
[1725367441081,0.084759,59273.0,59271.0,0.39025306]
[1725367441284,0.084759,59273.0,59272.0,0.084361]
[1725367441892,0.083759,59273.0,59272.0,0.084361]
[1725367442888,0.083759,59273.0,59272.0,0.087361]
[1725367449777,0.083759,59273.0,59272.0,0.177361]
[1725367455890,0.0004,59273.0,59272.0,0.538161]
[1725367456199,0.0004,59273.0,59272.0,0.622522]
[1725367456400,0.0004,59273.0,59272.0,1.728642]
[1725367456594,0.0004,59273.0,59272.0,1.128642]
[1725367461203,0.0004,59273.0,59272.0,0.622522]
[1725367462795,0.0004,59273.0,59272.0,0.538161]
[1725367463001,0.0004,59273.0,59272.0,0.622522]
[1725367463596,0.0004,59273.0,59272.0,0.538161]
[1725367463793,0.0004,59273.0,59272.0,0.622522]
[1725367464501,0.0004,59273.0,59272.0,0.177361]
[1725367470508,0.169118,59273.0,59272.0,0.003]
[1725367471794,0.084759,59273.0,59272.0,0.003]
[1725367472507,0.445559,59273.0,59272.0,0.003]
[1725367473906,0.529918,59273.0,59272.0,0.003]
[1725367474609,0.445559,59273.0,59272.0,0.003]
[1725367474910,0.529918,59273.0,59272.0,0.003]
[1725367475296,0.445559,59273.0,59272.0,0.003]
[1725367476507,0.50607411,59273.0,59272.0,0.003]
[1725367477515,0.59043311,59273.0,59272.0,0.003]
[1725367478301,0.50607411,59273.0,59272.0,0.003]
[1725367479208,0.59043311,59273.0,59272.0,0.003]
[1725367479410,0.50607411,59273.0,59272.0,0.003]
[1725367480012,0.59043311,59273.0,59272.0,0.003]
[1725367481704,0.50607411,59273.0,59272.0,0.003]
[1725367481900,0.50607411,59273.0,59272.0,0.233]
[1725367482705,0.42171511,59273.0,59272.0,0.233]
[1725367482909,0.42171511,59273.0,59272.0,0.317361]
[1725367483119,0.42171511,59273.0,59272.0,0.810761]
[1725367483612,0.3612,59273.0,59272.0,0.810761]
[1725367484414,0.0004,59273.0,59272.0,0.810761]
[1725367487408,0.0004,59273.0,59272.0,0.82319882]
[1725367492120,0.0004,59273.0,59272.0,0.68319882]
[1725367493824,0.0004,59273.0,59272.0,1.16319882]
[1725367495020,0.0004,59273.0,59272.0,1.24755982]
[1725367496912,0.0004,59273.0,59272.0,1.33192082]
[1725367499026,0.0004,59273.0,59272.0,1.69272082]
[1725367502126,0.0004,59273.0,59272.0,1.60272082]
[1725367502431,0.0004,59273.0,59272.0,1.69272082]
[1725367503631,0.0004,59273.0,59272.0,0.59319882]
[1725367503821,0.0004,59273.0,59272.0,0.68319882]
[1725367504027,0.0004,59273.0,59272.0,0.18979882]
[1725367504726,0.084759,59273.0,59272.0,0.18979882]
[1725367505035,0.084759,59273.0,59272.0,0.087361]
[1725367505531,0.084759,59273.0,59272.0,0.003]
[1725367508631,0.0004,59273.0,59272.0,0.087361]
[1725367509027,0.0004,59273.0,59272.0,0.448161]
[1725367510834,0.0004,59273.0,59272.0,0.087361]
[1725367511532,0.174759,59273.0,59272.0,0.003]
[1725367511828,0.259118,59273.0,59272.0,0.003]
[1725367512632,0.174759,59273.0,59272.0,0.003]
[1725367512928,0.18738687,59273.0,59272.0,0.003]
[1725367513341,0.27174587,59273.0,59272.0,0.003]
[1725367514025,0.18174587,59273.0,59272.0,0.003]
[1725367514836,0.09738687,59273.0,59272.0,0.003]
[1725367515229,0.09738687,59273.0,59272.0,0.233]
[1725367515433,0.084759,59273.0,59272.0,0.233]
[1725367515634,0.0004,59273.0,59272.0,0.317361]
[1725367518737,0.0004,59273.0,59272.0,0.33013068]
[1725367519243,0.084759,59273.0,59272.0,0.33013068]
[1725367524649,0.084759,59273.0,59272.0,0.233]
[1725367526553,0.084759,59273.0,59272.0,0.317361]
[1725367526753,0.169118,59273.0,59272.0,0.003]
[1725367527057,0.483477,59273.0,59272.0,0.003]
[1725367527241,0.169118,59273.0,59272.0,0.003]
[1725367527741,0.169118,59273.0,59272.0,0.233]
[1725367527942,0.169118,59273.0,59272.0,0.003]
[1725367531549,0.22963419,59273.0,59272.0,0.003]
[1725367533155,0.45963419,59273.0,59272.0,0.003]
[1725367536459,0.399118,59273.0,59272.0,0.003]
[1725367537348,0.483477,59273.0,59272.0,0.003]
[1725367538155,1.589597,59273.0,59272.0,0.003]
[1725367538553,1.359597,59273.0,59272.0,0.003]
[1725367538753,0.253477,59273.0,59272.0,0.003]
[1725367542060,0.343477,59273.0,59272.0,0.003]
[1725367543459,0.704277,59273.0,59272.0,0.003]
[1725367543659,0.40399429,59273.0,59272.0,0.003]
[1725367543854,0.76479429,59273.0,59272.0,0.003]
[1725367546660,0.40399429,59273.0,59272.0,0.003]
[1725367546859,0.76479429,59273.0,59272.0,0.003]
[1725367550164,0.68043529,59273.0,59272.0,0.003]
[1725367550365,0.50607629,59273.0,59272.0,0.093]
[1725367550556,0.42171729,59273.0,59272.0,0.177361]
[1725367550865,0.42171729,59273.0,59272.0,1.141161]
[1725367551563,0.3612,59273.0,59272.0,1.141161]
[1725367552564,0.0004,59273.0,59272.0,1.141161]
[1725367552753,0.0004,59273.0,59272.0,1.647281]
[1725367553961,0.0004,59273.0,59272.0,1.787281]
[1725367555765,0.0004,59273.0,59272.0,1.79996774]
[1725367555972,0.0004,59273.0,59272.0,1.29384774]
[1725367559069,0.084759,59273.0,59272.0,0.9668]
[1725367559265,0.084759,59273.0,59272.0,0.4703]
[1725367559460,0.084759,59273.0,59272.0,0.003]
[1725367559666,0.169118,59273.0,59272.0,0.003]
[1725367561170,0.399118,59273.0,59272.0,0.003]
[1725367562161,0.41170192,59273.0,59272.0,0.003]
[1725367562766,0.77250192,59273.0,59272.0,0.003]
[1725367562966,1.87862192,59273.0,59272.0,0.003]
[1725367563165,1.97862192,59273.0,59272.0,0.003]
[1725367563673,2.09298092,59273.0,59272.0,0.003]
[1725367563867,2.15350075,59273.0,59272.0,0.003]
[1725367564870,2.51430075,59273.0,59272.0,0.003]
[1725367565481,1.79270075,59273.0,59272.0,0.003]
[1725367565677,2.51430075,59273.0,59272.0,0.003]
[1725367565978,2.58354753,59273.0,59272.0,0.003]
[1725367566867,0.168736,59267.0,59266.0,0.0008]
[1725367567070,0.844304,59267.0,59266.0,0.0008]
[1725367567282,2.01102383,59267.0,59266.0,0.0008]
[1725367567477,2.08027061,59267.0,59266.0,0.0008]
[1725367567877,2.01102383,59267.0,59266.0,0.0008]
[1725367569181,0.16875,59262.0,59261.0,0.00025306]
[1725367569381,0.75955,59262.0,59261.0,0.00025306]
[1725367569574,0.82006983,59262.0,59261.0,0.00025306]
[1725367569772,1.32430983,59262.0,59261.0,0.00025306]
[1725367569975,1.32030983,59262.0,59261.0,0.00025306]
[1725367570486,1.32130983,59262.0,59261.0,0.00425306]
[1725367571183,2.00568483,59262.0,59261.0,0.00425306]
[1725367571879,0.89944483,59262.0,59261.0,0.00425306]
[1725367572072,0.90044483,59262.0,59261.0,0.00425306]
[1725367573077,0.16877,59255.0,59254.0,0.0039]
[1725367573277,0.084398,59246.0,59240.0,0.0039]
[1725367573479,0.23,59245.0,59244.0,0.0844]
[1725367573679,0.23,59245.0,59240.0,0.084405]
[1725367573877,0.3144,59245.0,59241.0,0.084404]
[1725367574071,0.084401,59244.0,59241.0,0.084404]
[1725367575486,0.084402,59243.0,59241.0,0.084404]
[1725367576388,0.084403,59242.0,59241.0,0.084404]
[1725367576581,0.084405,59241.0,59238.0,0.23]
[1725367577183,0.084405,59241.0,59240.0,0.23]
[1725367577791,0.084405,59241.0,59240.0,0.314406]
[1725367578999,0.084405,59241.0,59240.0,0.084406]
[1725367579195,0.085405,59241.0,59240.0,0.084366]
[1725367579694,0.086405,59241.0,59240.0,0.084366]
[1725367581795,0.084408,59239.0,59238.0,0.23]
[1725367582294,0.084408,59239.0,59238.0,0.084409]
[1725367583098,0.084409,59238.0,59237.0,0.01222053]
[1725367583290,0.084409,59238.0,59237.0,0.08441]
[1725367583686,0.08441,59237.0,59236.0,0.23]
[1725367584089,0.084413,59236.0,59235.0,0.084413]
[1725367584789,0.084416,59233.0,59232.0,1.01892544]
[1725367584990,0.084416,59233.0,59232.0,1.01792544]
[1725367586287,0.085416,59233.0,59232.0,1.01792544]
[1725367586692,0.086416,59233.0,59232.0,1.01792544]
[1725367590803,0.086416,59233.0,59232.0,1.24792544]
[1725367590804,0.002,59233.0,59232.0,1.24792544]
[1725367592691,0.002,59233.0,59232.0,1.84792544]
[1725367592892,0.08464706,59249.0,59248.0,0.084395]
[1725367593198,0.08464706,59249.0,59248.0,0.314395]
[1725367593199,0.00025306,59249.0,59248.0,0.314395]
[1725367594407,0.00525306,59249.0,59248.0,0.314395]
[1725367595401,0.00825306,59249.0,59248.0,0.314395]
[1725367596001,0.00825306,59249.0,59248.0,0.32707887]
[1725367599309,0.09264606,59249.0,59248.0,0.32707887]
[1725367601302,0.09264606,59249.0,59248.0,0.23]
[1725367601605,0.084396,59247.0,59246.0,0.314397]
[1725367601805,0.09264606,59249.0,59233.0,0.084415]
[1725367601806,0.3608,59248.0,59243.0,0.0125317]
[1725367602008,0.084402,59243.0,59242.0,0.314403]
[1725367605608,0.084402,59243.0,59242.0,0.23]
[1725367605808,0.084402,59243.0,59239.0,0.084408]
[1725367605809,0.4849,59246.0,59239.0,0.314408]
[1725367606009,0.084405,59241.0,59239.0,0.314408]
[1725367606711,0.084409,59238.0,59236.0,0.23]
[1725367607514,0.08441,59237.0,59236.0,0.23]
[1725367609412,0.08541,59237.0,59236.0,0.23]
[1725367609818,0.08641,59237.0,59236.0,0.23]
[1725367612120,0.08641,59237.0,59234.0,0.01230796]
[1725367612312,0.084415,59234.0,59233.0,0.23]
[1725367613611,0.085415,59234.0,59233.0,0.23]
[1725367615829,0.086415,59234.0,59233.0,0.23]
[1725367618525,0.086415,59234.0,59232.0,0.01238566]
[1725367618526,0.168832,59233.0,59232.0,0.01238566]
[1725367618730,0.084422,59229.0,59228.0,0.084423]
[1725367619533,0.084422,59229.0,59228.0,0.09705278]
[1725367620834,0.168844,59229.0,59228.0,0.01262978]
[1725367621025,0.084423,59228.0,59227.0,0.23]
[1725367622431,0.085423,59228.0,59227.0,0.23]
[1725367623633,0.085423,59228.0,59227.0,0.24258132]
[1725367624037,0.086423,59228.0,59227.0,0.24258132]
[1725367624942,0.086423,59228.0,59227.0,0.32700632]
[1725367628446,0.086423,59228.0,59227.0,0.09700632]
[1725367629047,0.086423,59228.0,59227.0,0.01258132]
[1725367629237,0.084428,59226.0,59225.0,0.084426]
[1725367629432,0.3608,59227.0,59222.0,0.05035357]
[1725367629746,0.084433,59223.0,59222.0,0.084432]
[1725367629948,0.174433,59223.0,59222.0,0.084432]
[1725367630437,0.174433,59223.0,59222.0,0.174432]
[1725367631345,0.175433,59223.0,59222.0,0.174432]
[1725367631644,0.085433,59223.0,59222.0,0.174432]
[1725367632436,0.086433,59223.0,59222.0,0.174432]
[1725367633945,0.086433,59223.0,59219.0,0.3608]
[1725367633946,0.084435,59220.0,59219.0,0.3608]
[1725367635345,0.084435,59220.0,59219.0,0.37304635]
[1725367635546,0.084435,59220.0,59219.0,0.01224635]
[1725367635849,0.084436,59219.0,59218.0,0.09]
[1725367636039,0.084436,59219.0,59218.0,0.174438]
[1725367636551,0.084436,59219.0,59218.0,0.18673701]
[1725367637548,0.085436,59219.0,59218.0,0.18673701]
[1725367637847,0.086436,59219.0,59218.0,0.18673701]
[1725367638438,0.084439,59217.0,59216.0,0.91342]
[1725367638742,0.174439,59217.0,59216.0,0.9125]
[1725367639252,0.174439,59217.0,59216.0,0.4588]
[1725367639548,0.084439,59217.0,59216.0,0.54324]
[1725367639949,0.084439,59217.0,59216.0,0.77324]
[1725367640638,0.085439,59217.0,59216.0,0.77324]
[1725367641049,0.086439,59217.0,59216.0,0.77324]
[1725367644943,0.084443,59214.0,59213.0,0.084443]
[1725367645252,0.314443,59214.0,59213.0,0.084443]
[1725367646349,0.315443,59214.0,59213.0,0.084443]
[1725367647042,0.316443,59214.0,59213.0,0.084443]
[1725367647241,0.084447,59211.0,59210.0,0.084448]
[1725367647448,0.314447,59211.0,59210.0,0.084448]
[1725367648547,0.315447,59211.0,59210.0,0.084448]
[1725367650044,0.316447,59211.0,59210.0,0.084448]
[1725367650250,0.232,59211.0,59209.0,0.01255526]
[1725367650443,0.232,59211.0,59206.0,1.17318]
[1725367650444,0.084452,59208.0,59207.0,0.084453]
[1725367651248,0.168906,59207.0,59206.0,0.00088]
[1725367651443,0.084461,59204.0,59203.0,0.084459]
[1725367651649,0.084461,59204.0,59203.0,0.314459]
[1725367653548,0.084462,59201.0,59200.0,0.01246623]
[1725367653753,0.084462,59201.0,59200.0,0.084463]
[1725367654952,0.085462,59201.0,59200.0,0.084463]
[1725367655153,0.086462,59201.0,59200.0,0.084463]
[1725367655347,0.086462,59201.0,59199.0,0.23]
[1725367655348,0.002,59201.0,59199.0,0.23]
[1725367655552,0.084463,59200.0,59199.0,0.23]
[1725367655953,0.084463,59200.0,59199.0,0.314465]
[1725367656952,0.084463,59200.0,59199.0,0.32696561]
[1725367657454,0.085463,59200.0,59199.0,0.32696561]
[1725367658362,0.086463,59200.0,59199.0,0.32696561]
[1725367658550,0.084467,59197.0,59196.0,0.446148]
[1725367658751,0.314467,59197.0,59196.0,0.445268]
[1725367659254,0.314467,59197.0,59194.0,0.4722]
[1725367659255,0.08447,59195.0,59194.0,0.01264862]
[1725367659455,0.16894,59195.0,59194.0,0.01264862]
[1725367659762,0.084477,59190.0,59189.0,1.002478]
[1725367659961,0.084477,59190.0,59189.0,0.998578]
[1725367661356,0.086477,59190.0,59189.0,0.998578]
[1725367661659,0.086477,59190.0,59189.0,1.01108991]
[1725367662960,0.002,59190.0,59189.0,1.01108991]
[1725367670960,0.0028,59190.0,59189.0,1.01108991]
[1725367671858,0.0028,59190.0,59189.0,1.09556891]
[1725367672064,0.0039,59197.0,59196.0,0.084469]
[1725367672267,0.08443,59224.0,59196.0,0.084469]
[1725367672268,0.0039,59204.0,59203.0,0.084459]
[1725367672466,0.08470827,59206.0,59205.0,0.084456]
[1725367672761,0.08470827,59206.0,59203.0,0.5908]
[1725367672762,0.084457,59204.0,59203.0,0.5908]
[1725367672958,0.084457,59204.0,59203.0,0.675259]
[1725367673363,0.084457,59204.0,59203.0,0.445259]
[1725367673570,0.084457,59204.0,59203.0,0.3608]
[1725367673571,0.314457,59204.0,59203.0,0.3608]
[1725367673771,0.321457,59204.0,59203.0,0.3608]
[1725367675066,0.6028,59204.0,59198.0,0.084465]
[1725367675472,0.084465,59200.0,59198.0,0.084465]
[1725367675767,0.084465,59200.0,59196.0,0.5908]
[1725367675768,0.23,59199.0,59196.0,0.3608]
[1725367676571,0.084467,59197.0,59196.0,0.3608]
[1725367676771,0.084467,59197.0,59196.0,0.5908]
[1725367677163,0.3678,59204.0,59198.0,0.084466]
[1725367677367,0.3678,59204.0,59196.0,0.5908]
[1725367677368,0.084459,59203.0,59202.0,0.23]
[1725367679868,0.094459,59203.0,59202.0,0.23]
[1725367680969,0.094459,59203.0,59199.0,0.084464]
[1725367680970,0.084463,59201.0,59199.0,0.314464]
[1725367681170,0.085263,59200.0,59199.0,0.314464]
[1725367683867,0.088263,59200.0,59199.0,0.314464]
[1725367684064,0.089263,59200.0,59199.0,0.314464]
[1725367684675,0.0048,59200.0,59199.0,0.314464]
[1725367686871,0.089263,59200.0,59199.0,0.314464]
[1725367689776,0.0048,59200.0,59199.0,0.314464]
[1725367691374,0.0048,59200.0,59199.0,0.398929]
[1725367691573,0.0048,59200.0,59199.0,0.4117541]
[1725367692173,0.0048,59200.0,59199.0,1.6029791]
[1725367693075,0.0038,59200.0,59199.0,1.6029791]
[1725367693576,0.0038,59200.0,59199.0,1.0029791]
[1725367693777,0.00025327,59206.0,59199.0,1.3495851]
[1725367694083,0.6882,59225.0,59205.0,0.5912]
[1725367694084,0.0039,59223.0,59205.0,0.5912]
[1725367694288,0.4627,59224.0,59223.0,0.08443]
[1725367694581,0.4627,59224.0,59223.0,0.08483]
[1725367695371,0.547129,59224.0,59223.0,0.08483]
[1725367695676,2.066547,59224.0,59223.0,1e-06]
[1725367695877,0.253308,59219.0,59218.0,0.00025327]
[1725367696076,0.874108,59219.0,59218.0,0.00025327]
[1725367696276,1.980708,59219.0,59218.0,0.00025327]
[1725367697678,1.991708,59219.0,59218.0,0.00125327]
[1725367697876,2.004708,59219.0,59218.0,0.00225327]
[1725367699376,0.898108,59219.0,59218.0,0.00225327]
[1725367699782,0.868108,59219.0,59218.0,0.00225327]
[1725367699980,0.553672,59219.0,59218.0,0.23225327]
[1725367700577,0.108436,59219.0,59218.0,0.23225327]
[1725367701382,0.024,59219.0,59218.0,0.59305327]
[1725367701780,0.024,59219.0,59218.0,0.67749127]
[1725367702591,0.024,59219.0,59218.0,0.00225327]
[1725367702592,0.108436,59219.0,59218.0,0.00225327]
[1725367702891,0.338436,59219.0,59218.0,0.00225327]
[1725367703893,0.422872,59219.0,59218.0,0.00225327]
[1725367704381,0.192872,59219.0,59218.0,0.00225327]
[1725367704581,0.422872,59219.0,59218.0,0.00225327]
[1725367704781,0.43521806,59219.0,59218.0,0.00225327]
[1725367707892,0.192872,59219.0,59218.0,0.00225327]
[1725367708090,0.192872,59219.0,59218.0,0.23225327]
[1725367708091,0.108436,59219.0,59218.0,0.23225327]
[1725367711895,0.16900615,59219.0,59218.0,0.23225327]
[1725367715394,0.08457015,59219.0,59218.0,0.23225327]
[1725367715594,0.0845638,59219.0,59218.0,0.90772927]
[1725367715800,0.00025327,59229.0,59228.0,0.084423]
[1725367715801,0.08467627,59229.0,59228.0,0.084423]
[1725367716096,0.08467627,59229.0,59228.0,0.2304]
[1725367717194,0.09867627,59229.0,59228.0,0.2304]
[1725367717586,0.09867627,59229.0,59228.0,0.2314]
[1725367717789,0.19609927,59229.0,59228.0,0.0014]
[1725367719694,0.55689927,59229.0,59228.0,0.0014]
[1725367720903,0.64132227,59229.0,59228.0,0.0014]
[1725367721800,1.74784227,59229.0,59228.0,0.0014]
[1725367721987,1.85784227,59229.0,59228.0,0.0014]
[1725367722392,1.90784227,59229.0,59228.0,0.0014]
[1725367725404,1.96841049,59229.0,59228.0,0.0014]
[1725367728306,2.32921049,59229.0,59228.0,0.0014]
[1725367728614,1.60761049,59229.0,59228.0,0.0014]
[1725367728797,2.32921049,59229.0,59228.0,0.0014]
[1725367729304,0.253296,59222.0,59221.0,0.0039]
[1725367729504,0.253296,59222.0,59218.0,0.00025327]
[1725367729505,0.168872,59219.0,59218.0,0.00025327]
[1725367729901,0.169272,59219.0,59218.0,0.00025327]
[1725367730590,0.169272,59219.0,59218.0,0.23025327]
[1725367730795,0.181272,59219.0,59218.0,0.23125327]
[1725367731200,0.181272,59219.0,59218.0,0.00125327]
[1725367731398,0.24184388,59219.0,59218.0,0.00125327]
[1725367731594,0.24484388,59219.0,59218.0,0.00225327]
[1725367732995,0.25723004,59219.0,59218.0,0.00225327]
[1725367736404,0.25723004,59219.0,59218.0,0.23225327]
[1725367738505,0.19665816,59219.0,59218.0,0.23225327]
[1725367738899,0.11222216,59219.0,59218.0,0.23225327]
[1725367739500,0.02778616,59219.0,59218.0,0.23225327]
[1725367739809,0.0154,59219.0,59218.0,0.31669127]
[1725367740010,0.0154,59219.0,59218.0,1.78409127]
[1725367740209,0.0004,59222.0,59221.0,0.084433]
[1725367740506,0.0004,59222.0,59221.0,0.314833]
[1725367740701,0.0004,59222.0,59221.0,1.421393]
[1725367741011,0.0039,59230.0,59228.0,0.084423]
[1725367741304,0.3608,59235.0,59228.0,0.314823]
[1725367741813,0.445214,59235.0,59228.0,0.314823]
[1725367743402,0.00125327,59229.0,59228.0,0.315823]
[1725367744308,0.00125327,59229.0,59228.0,0.316823]
[1725367744515,0.00125327,59229.0,59228.0,1.423343]
[1725367745412,0.00125327,59229.0,59228.0,1.43560298]
[1725367745808,0.0039,59237.0,59236.0,0.084412]
[1725367746014,0.084401,59244.0,59234.0,0.23]
[1725367746209,0.084401,59244.0,59241.0,0.2265]
[1725367746413,0.42134491,59242.0,59241.0,0.2265]
[1725367747009,0.42134491,59242.0,59241.0,0.310905]
[1725367747010,0.06054491,59242.0,59241.0,0.310905]
[1725367747316,0.084398,59246.0,59245.0,0.084399]
[1725367747514,0.084398,59246.0,59245.0,0.314799]
[1725367749909,0.084398,59246.0,59245.0,0.315799]
[1725367750417,0.085398,59246.0,59245.0,0.316799]
[1725367757015,0.085398,59246.0,59245.0,0.2324]
[1725367757211,0.085398,59246.0,59245.0,0.0024]
[1725367757413,0.399796,59246.0,59245.0,0.0024]
[1725367757617,1.350996,59246.0,59245.0,0.0024]
[1725367758015,1.435394,59246.0,59245.0,0.0024]
[1725367758925,2.611754,59246.0,59245.0,0.0024]
[1725367759239,0.16882,59237.0,59236.0,0.00025327]
[1725367759524,0.86962,59237.0,59236.0,0.00025327]
[1725367759817,0.75962,59237.0,59236.0,0.00025327]
[1725367761023,0.76162,59237.0,59236.0,0.00025327]
[1725367761518,0.82217366,59237.0,59236.0,0.00025327]
[1725367761716,0.82017366,59237.0,59236.0,0.00025327]
[1725367761917,0.82217366,59237.0,59236.0,0.00225327]
[1725367762411,0.88217366,59237.0,59236.0,0.00225327]
[1725367762920,0.56776366,59237.0,59236.0,0.00225327]
[1725367763126,0.50776366,59237.0,59236.0,0.00225327]
[1725367763620,0.50976366,59237.0,59236.0,0.00225327]
[1725367763820,0.50776366,59237.0,59236.0,0.00125327]
[1725367764025,0.50976366,59237.0,59236.0,0.00225327]
[1725367764726,0.50776366,59237.0,59236.0,0.00125327]
[1725367764916,0.50976366,59237.0,59236.0,0.00225327]
[1725367765625,0.52208453,59237.0,59236.0,0.00225327]
[1725367768225,0.52108453,59237.0,59236.0,0.00225327]
[1725367768529,0.46053087,59237.0,59236.0,0.00225327]
[1725367768825,0.45853087,59237.0,59236.0,0.00225327]
[1725367769029,0.47053087,59237.0,59236.0,0.00225327]
[1725367770628,0.46953087,59237.0,59236.0,0.00125327]
[1725367770833,0.47053087,59237.0,59236.0,0.00225327]
[1725367771533,0.46853087,59237.0,59236.0,0.00125327]
[1725367771722,0.47053087,59237.0,59236.0,0.00225327]
[1725367771923,0.63935087,59237.0,59236.0,0.00225327]
[1725367773649,0.75935087,59237.0,59236.0,0.00225327]
[1725367773828,0.75835087,59237.0,59236.0,0.00125327]
[1725367774029,0.75935087,59237.0,59236.0,0.00225327]
[1725367774539,1.86479087,59237.0,59236.0,0.00125327]
[1725367774831,0.08443,59223.0,59222.0,0.2339]
[1725367775129,0.08443,59223.0,59222.0,0.23]
[1725367775327,0.08443,59223.0,59222.0,0.7235]
[1725367775925,0.445226,59226.0,59222.0,0.7235]
[1725367776126,0.084426,59226.0,59225.0,0.23]
[1725367776323,0.084426,59226.0,59225.0,0.2304]
[1725367777821,0.085426,59226.0,59225.0,0.2314]
[1725367778535,0.089426,59226.0,59225.0,0.2314]
[1725367779838,0.089426,59226.0,59225.0,0.2324]
[1725367780535,0.005,59226.0,59225.0,0.316828]
[1725367781838,0.004,59226.0,59225.0,0.316828]
[1725367782036,0.003,59226.0,59225.0,0.315828]
[1725367782329,0.004,59226.0,59225.0,0.315828]
[1725367783830,0.003,59226.0,59225.0,0.315828]
[1725367784138,0.004,59226.0,59225.0,0.316828]
[1725367784537,0.004,59226.0,59225.0,0.315828]
[1725367784729,0.001,59226.0,59225.0,0.314828]
[1725367784929,0.004,59226.0,59225.0,0.315828]
[1725367785736,0.004,59226.0,59225.0,0.314828]
[1725367786134,0.004,59226.0,59225.0,1.505776]
[1725367786439,0.001,59226.0,59225.0,1.505776]
[1725367786643,0.004,59226.0,59225.0,1.505776]
[1725367787139,0.0039,59234.0,59227.0,0.084425]
[1725367787338,0.3608,59237.0,59233.0,0.0004]
[1725367787339,0.3647,59237.0,59233.0,0.0004]
[1725367787544,0.3608,59237.0,59236.0,0.23]
[1725367787731,0.3608,59237.0,59236.0,0.314812]
[1725367787937,0.3608,59237.0,59236.0,0.314412]
[1725367788336,0.37306295,59237.0,59236.0,0.314412]
[1725367788530,0.37406295,59237.0,59236.0,0.314412]
[1725367789939,0.37706295,59237.0,59236.0,0.314412]
[1725367790443,0.01626295,59237.0,59236.0,0.314412]
[1725367791932,0.01526295,59237.0,59236.0,0.314412]
[1725367792140,0.01226295,59237.0,59236.0,0.314412]
[1725367792336,0.08441,59238.0,59237.0,0.08441]
[1725367792643,0.09668969,59238.0,59237.0,0.08481]
[1725367795347,0.09668969,59238.0,59237.0,0.08581]
[1725367796845,0.09668969,59238.0,59237.0,0.08681]
[1725367798040,0.09668969,59238.0,59237.0,0.08581]
[1725367798545,0.09668969,59238.0,59237.0,0.08681]
[1725367805955,0.09668969,59238.0,59237.0,0.08581]
[1725367806143,0.09668969,59238.0,59237.0,0.08681]
[1725367807348,0.09668969,59238.0,59237.0,0.08581]
[1725367807549,0.09668969,59238.0,59237.0,0.08681]
[1725367807952,0.09668969,59238.0,59237.0,0.17681]
[1725367808448,0.00192001,59241.0,59240.0,0.084406]
[1725367808653,0.084397,59247.0,59246.0,0.084398]
[1725367808852,0.445197,59247.0,59246.0,0.09]
[1725367809051,0.084397,59247.0,59246.0,0.0904]
[1725367810161,0.084397,59247.0,59246.0,0.174798]
[1725367810554,0.084397,59247.0,59246.0,0.175798]
[1725367811345,0.445197,59247.0,59246.0,0.175798]
[1725367812546,0.445197,59247.0,59246.0,0.176798]
[1725367814854,0.445197,59247.0,59246.0,0.0924]
[1725367817658,0.529594,59247.0,59246.0,0.0024]
[1725367817857,0.613991,59247.0,59246.0,0.0024]
[1725367818554,0.67453761,59247.0,59246.0,0.0024]
[1725367818755,0.78453761,59247.0,59246.0,0.0024]
[1725367819855,1.94089761,59247.0,59246.0,0.0024]